Workbook

Sheet 封面
A1: 2023年部门预算公开表
D4: 单位编码： | E4: 436002
D5: 单位名称： | E5: 岳阳县人力资源和社会保障局

Sheet 目录
B1: 部门预算公开表
B3: 一、部门预算报表
B4: 1 | C4: 收支总表
B5: 2 | C5: 收入总表
B6: 3 | C6: 支出总表
B7: 4 | C7: 支出预算分类汇总表（按政府预算经济分类）
B8: 5 | C8: 支出预算分类汇总表（按部门预算经济分类）
B9: 6 | C9: 财政拨款收支总表
B10: 7 | C10: 一般公共预算支出表
B11: 8 | C11: 一般公共预算基本支出表
B12: 9 | C12: 一般公共预算基本支出表--人员经费(工资福利支出)(按政府预算经济分类)
B13: 10 | C13: 一般公共预算基本支出表--人员经费(工资福利支出)(按部门预算经济分类)
B14: 11 | C14: 一般公共预算基本支出表--人员经费(对个人和家庭的补助)(按政府预算经济分类)
B15: 12 | C15: 一般公共预算基本支出表--人员经费(对个人和家庭的补助)（按部门预算经济分类）
B16: 13 | C16: 一般公共预算基本支出表--公用经费(商品和服务支出)（按政府预算经济分类）
B17: 14 | C17: 一般公共预算基本支出表--公用经费(商品和服务支出)(按部门预算经济分类)
B18: 15 | C18: 一般公共预算“三公”经费支出表
B19: 16 | C19: 政府性基金预算支出表
B20: 17 | C20: 政府性基金预算支出分类汇总表（按政府预算经济分类）
B21: 18 | C21: 政府性基金预算支出分类汇总表（按部门预算经济分类）
B22: 19 | C22: 国有资本经营预算表
B23: 20 | C23: 财政专户管理资金预算支出表
B24: 21 | C24: 专项资金预算汇总表
B25: 22 | C25: 项目支出绩效目标表
B26: 23 | C26: 部门整体支出绩效目标表
B27: 注：以上部门预算报表中，空表表示本部门无相关收支情况。

Sheet 1收支总表
A2: 收支总表
A3: 单位：岳阳县人力资源和社会保障局 | G3: 金额单位：万元
A4: 收入 | C4: 支出
A5: 项目 | B5: 预算数 | C5: 项目（按功能分类） | D5: 预算数 | E5: 项目（按部门预算经济分类） | F5: 预算数 | G5: 项目（按政府预算经济分类） | H5: 预算数
A6: 一、一般公共预算拨款收入 | B6: =B7+B8 -> 1,750.16 | C6: （一）一般公共服务支出 | E6: 一、基本支出 | F6: =F7+F8+F9 -> 1,612.65 | G6: 一、机关工资福利支出 | H6: 1,216.19
A7: 经费拨款 | B7: 1,740.16 | C7: （二）外交支出 | E7: 工资福利支出 | F7: 1,216.19 | G7: 二、机关商品和服务支出 | H7: 774.55
A8: 纳入一般公共预算管理的非税收入拨款 | B8: =B10 -> 10.00 | C8: （三）国防支出 | E8: 商品和服务支出 | F8: 396.46 | G8: 三、机关资本性支出（一）
A9: 行政事业性收费收入 | C9: （四）公共安全支出 | E9: 对个人和家庭的补助 | G9: 四、机关资本性支出（二）
A10: 专项收入 | B10: 10.00 | C10: （五）教育支出 | E10: 二、项目支出 | F10: =F12 -> 378.09 | G10: 五、对事业单位经常性补助
A11: 国有资本经营收入 | C11: （六）科学技术支出 | E11: 按项目管理的工资福利支出 | G11: 六、对事业单位资本性补助
A12: 国有资源（资产）有偿使用收入 | C12: （七）文化旅游体育与传媒支出 | E12: 按项目管理的商品和服务支出 | F12: 378.09 | G12: 七、对企业补助
A13: 罚没收入 | C13: （八）社会保障和就业支出 | D13: 1,835.66 | E13: 按项目管理的对个人和家庭的补助 | G13: 八、对企业资本性支出
A14: 捐赠收入 | C14: （九）社会保险基金支出 | E14: 债务利息及费用支出 | G14: 九、对个人和家庭的补助
A15: 政府住房基金收入 | C15: （十）卫生健康支出 | D15: 64.30 | E15: 资本性支出（基本建设） | G15: 十、对社会保障基金补助
A16: 其他纳入一般公共预算管理的非税收入 | C16: （十一）节能环保支出 | E16: 资本性支出 | G16: 十一、债务利息及费用支出
A17: 一般债券 | C17: （十二）城乡社区支出 | E17: 对企业补助（基本建设） | G17: 十二、债务还本支出
A18: 外国政府和国际组织贷款 | C18: （十三）农林水支出 | E18: 对企业补助 | G18: 十三、转移性支出
A19: 外国政府和国际组织捐赠 | C19: （十四）交通运输支出 | E19: 对社会保障基金补助 | G19: 十四、其他支出
A20: 二、政府性基金预算拨款收入 | C20: （十五）资源勘探工业信息等支出 | E20: 其他支出
A21: 三、国有资本经营预算拨款收入 | C21: （十六）商业服务业等支出 | E21: 三、事业单位经营服务支出
A22: 四、社会保障基金预算资金 | C22: （十七）金融支出
A23: 五、财政专户管理资金收入 | C23: （十八）援助其他地区支出
A24: 六、上级财政补助收入 | C24: （十九）自然资源海洋气象等支出
A25: 一般公共预算补助 | C25: （二十）住房保障支出 | D25: 90.78
A26: 政府性基金补助 | C26: （二十一）粮油物资储备支出
A27: 国有资本经营预算补助 | C27: （二十二）国有资本经营预算支出
A28: 七、事业收入 | C28: （二十三）灾害防治及应急管理支出
A29: 八、事业单位经营收入 | C29: （二十四）预备费
A30: 九、上级单位补助收入 | C30: （二十五）其他支出
A31: 十、附属单位上缴收入 | C31: （二十六）转移性支出
A32: 十一、其他收入 | C32: （二十七）债务还本支出
C33: （二十八）债务付息支出
C34: （二十九）债务发行费用支出
C35: （三十）抗疫特别国债安排的支出
A37: 本 年 收 入 合 计 | B37: =B6+B20+B21+B22+B23+B24+B28+B29+B30+B31+B32 -> 1,750.16 | C37: 本 年 支 出 合 计 | D37: =D13+D15+D25 -> 1,990.74 | E37: 本 年 支 出 合 计 | F37: =F6+F10 -> 1,990.74 | G37: 本 年 支 出 合 计 | H37: =H6+H7+H8 -> 1,990.74
A38: 上年结转结余 | B38: 240.58 | C38: 年终结转结余 | D38: 0.00 | E38: 年终结转结余 | F38: 0.00 | G38: 年终结转结余 | H38: 0.00
A40: 收 入 总 计 | B40: =B37+B38 -> 1,990.74 | C40: 支 出 总 计 | D40: =D37+D38 -> 1,990.74 | E40: 支 出 总 计 | F40: =F37+F38 -> 1,990.74 | G40: 支 出 总 计 | H40: =H37+H38 -> 1,990.74

Sheet 2收入总表
A2: 收入总表
A3: 单位：岳阳县人力资源和社会保障局 | U3: 金额单位：万元
A4: 部门（单位）代码 | B4: 部门（单位）名称 | C4: 合计 | D4: 本年收入 | S4: 上年结转结余
D5: 小计 | E5: 一般公共预算 | F5: 政府性基金预算 | G5: 国有资本经营预算 | H5: 社会保险基金预算资金 | I5: 财政专户管理资金 | J5: 上级财政补助收入 | N5: 事业收入 | O5: 事业单位经营收入 | P5: 上级单位补助收入 | Q5: 附属单位上缴收入 | R5: 其他收入 | S5: 小计 | T5: 一般公共预算 | U5: 政府性基金预算 | V5: 国有资本经营预算 | W5: 社会保险基金预算资金 | X5: 财政专户管理资金 | Y5: 单位资金
J6: 一般公共预算补助 | K6: 政府性基金补助 | L6: 国有资本经营预算补助 | M6: 社会保险基金预算资金
A7: 436002 | B7: 人社局 | C7: =D7+S7 -> 1,990.74 | D7: =E7+F7+G7+H7+I7+J7+K7+L7++M7+N7+O7+P7+Q7+R7 -> 1,750.16 | E7: 1,750.16 | S7: =T7 -> 240.58 | T7: 240.58

Sheet 3支出总表
A2: 支出总表
A3: 单位：岳阳县人力资源和社会保障局 | K3: 金额单位：万元
A4: 功能科目 | D4: 科目编码 | E4: 科目名称 | F4: 合计 | G4: 基本支出 | H4: 项目支出 | I4: 事业单位经营支出 | J4: 上缴上级支出 | K4: 对附属单位补助支出
A5: 类 | B5: 款 | C5: 项
E6: 合计 | F6: =F7 -> 1,990.74 | G6: 1,612.65 | H6: 378.09
D7: 436 | E7: 岳阳县人力资源和社会保障局 | F7: 1,990.74 | G7: 1,612.65 | H7: 378.09
D8: 436002 | E8: 岳阳县人力资源和社会保障局机关 | F8: =G8+H8 -> 1,990.74 | G8: =G9+G11+G12+G13+G14 -> 1,612.65 | H8: =H9+H10+H11+H12+H13+H14 -> 378.09
A9: 208 | B9: 01 | C9: 01 | D9: 436002 | E9: 行政运行 | F9: =G9+H9 -> 1,321.39 | G9: 1,321.39
A10: 208 | B10: 01 | C10: 02 | D10: 436002 | E10: 一般行政管理事务 | F10: =G10+H10 -> 378.09 | G10: 0.00 | H10: 378.09
A11: 208 | B11: 05 | C11: 05 | D11: 436002 | E11: 机关事业单位基本养老保险缴费支出 | F11: =G11+H11 -> 121.04 | G11: 121.04
A12: 208 | B12: 99 | C12: 99 | D12: 436002 | E12: 其他社会保障和就业支出 | F12: 15.14 | G12: 15.14
A13: 210 | B13: 11 | C13: 01 | D13: 436002 | E13: 行政单位医疗 | F13: 64.30 | G13: 64.30
A14: 221 | B14: 02 | C14: 01 | D14: 436002 | E14: 住房公积金 | F14: 90.78 | G14: 90.78

Sheet 4支出分类(政府预算)
A2: 支出预算分类汇总表（按政府预算经济分类）
A3: 单位：岳阳县人力资源和社会保障局 | S3: 金额单位：万元
A4: 功能科目 | D4: 单位代码 | E4: 单位名称（功能科目） | F4: 总 计 | G4: 机关工资福利支出 | H4: 机关商品和服务支出 | I4: 机关资本性支出(一) | J4: 机关资本性支出(二) | K4: 对事业单位经常性补助 | L4: 对事业单位资本性补助 | M4: 对企业补助 | N4: 对企业资本性支出 | O4: 对个人和家庭的补助 | P4: 对社会保障基金补助 | Q4: 债务利息及费用支出 | R4: 债务还本支出 | S4: 转移性支出 | T4: 其他支出
A5: 类 | B5: 款 | C5: 项
E6: 合计 | F6: =F7 -> 1,990.74 | G6: 1,216.19 | H6: 774.55
D7: 436 | E7: 岳阳县人力资源和社会保障局 | F7: 1,990.74 | G7: 1,216.19 | H7: 774.55
D8: 436002 | E8: 岳阳县人力资源和社会保障局机关 | F8: =G8+H8 -> 1,990.74 | G8: =G9+G11+G12+G13+G14 -> 1,216.19 | H8: =H9+H10+H11+H12+H13+H14 -> 774.55
A9: 208 | B9: 01 | C9: 01 | D9: 436002 | E9: 行政运行 | F9: =G9+H9 -> 1,321.39 | G9: 924.93 | H9: 396.46
A10: 208 | B10: 01 | C10: 02 | D10: 436002 | E10: 一般行政管理事务 | F10: =G10+H10 -> 378.09 | G10: 0.00 | H10: 378.09
A11: 208 | B11: 05 | C11: 05 | D11: 436002 | E11: 机关事业单位基本养老保险缴费支出 | F11: =G11+H11 -> 121.04 | G11: 121.04
A12: 208 | B12: 99 | C12: 99 | D12: 436002 | E12: 其他社会保障和就业支出 | F12: 15.14 | G12: 15.14
A13: 210 | B13: 11 | C13: 01 | D13: 436002 | E13: 行政单位医疗 | F13: 64.30 | G13: 64.30
A14: 221 | B14: 02 | C14: 01 | D14: 436002 | E14: 住房公积金 | F14: 90.78 | G14: 90.78

Sheet 5支出分类（部门预算）
A2: 支出预算分类汇总表（按部门预算经济分类）
A3: 单位：岳阳县人力资源和社会保障局 | T3: 金额单位：万元
A4: 功能科目 | D4: 单位代码 | E4: 单位名称（功能科目） | F4: 总 计 | G4: 基本支出 | K4: 项目支出
A5: 类 | B5: 款 | C5: 项 | G5: 合计 | H5: 工资福利支出 | I5: 一般商品和服务支出 | J5: 对个人和家庭的补助 | K5: 合计 | L5: 按项目管理的工资福利支出 | M5: 按项目管理的商品和服务支出 | N5: 按项目管理的对个人和家庭的补助 | O5: 债务利息及费用支出 | P5: 资本性支出（基本建设） | Q5: 资本性支出 | R5: 对企业补助（基本建设） | S5: 对企业补助 | T5: 对社会保障基金补助 | U5: 其他支出
E6: 合计 | F6: =G6+K6 -> 1,990.74 | G6: =H6+I6+J6 -> 1,612.65 | H6: =H7 -> 1,216.19 | I6: =I7 -> 396.46 | K6: 378.09 | M6: 378.09
D7: 436 | E7: 岳阳县人力资源和社会保障局 | F7: =G7+K7 -> 1,990.74 | G7: =G8 -> 1,612.65 | H7: =H8 -> 1,216.19 | I7: 396.46 | K7: 378.09 | M7: 378.09
D8: 436002 | E8: 岳阳县人力资源和社会保障局机关 | F8: 1,990.74 | G8: =G9+G10+G11+G12+G13+G14 -> 1,612.65 | H8: =H9+H10+H11+H12+H13+H14 -> 1,216.19 | I8: =I9+I10+I11+I12+I13+I14 -> 396.46 | K8: 378.09 | M8: 378.09
A9: 208 | B9: 01 | C9: 01 | D9: 436002 | E9: 行政运行 | F9: 1,321.39 | G9: =H9+I9+J9 -> 1,321.39 | H9: 924.93 | I9: 396.46
A10: 208 | B10: 01 | C10: 02 | D10: 436002 | E10: 一般行政管理事务 | F10: 378.09 | G10: =H10+I10+J10 -> 0.00 | H10: 0.00 | K10: =L10+M10+N10+O10+P10+Q10+R10+S10+T10+U10 -> 378.09 | M10: 378.09
A11: 208 | B11: 05 | C11: 05 | D11: 436002 | E11: 机关事业单位基本养老保险缴费支出 | F11: 121.04 | G11: 121.04 | H11: 121.04
A12: 208 | B12: 99 | C12: 99 | D12: 436002 | E12: 其他社会保障和就业支出 | F12: 15.14 | G12: 15.14 | H12: 15.14
A13: 210 | B13: 11 | C13: 01 | D13: 436002 | E13: 行政单位医疗 | F13: 64.30 | G13: 64.30 | H13: 64.30
A14: 221 | B14: 02 | C14: 01 | D14: 436002 | E14: 住房公积金 | F14: 90.78 | G14: 90.78 | H14: 90.78

Sheet 6财政拨款收支总表
A2: 财政拨款收支总表
A3: 单位：岳阳县人力资源和社会保障局 | D3: 金额单位：万元
A4: 收入 | C4: 支出
A5: 项目 | B5: 预算数 | C5: 项目 | D5: 预算数
A6: 一、本年收入 | B6: =B7 -> 1,750.16 | C6: 一、本年支出 | D6: =D14+D16+D26 -> 1,990.74
A7: （一）一般公共预算拨款 | B7: =B8+B9 -> 1,750.16 | C7: （一）一般公共服务支出
A8: 经费拨款 | B8: 1,740.16 | C8: （二）外交支出
A9: 纳入一般公共预算管理的非税收入拨款 | B9: 10.00 | C9: （三）国防支出
A10: （二）政府性基金预算拨款 | C10: （四）公共安全支出
A11: （三）国有资本经营预算拨款 | C11: （五）教育支出
A12: （四）社会保险基金预算资金 | C12: （六）科学技术支出
A13: 二、上年结转 | B13: 240.58 | C13: （七）文化旅游体育与传媒支出
A14: （一）一般公共预算拨款 | C14: （八）社会保障和就业支出 | D14: 1,835.66
A15: （二）政府性基金预算拨款 | C15: （九）社会保险基金支出
A16: （三）国有资本经营预算拨款 | C16: （十）卫生健康支出 | D16: 64.30
A17: （四）社会保险基金预算资金 | C17: （十一）节能环保支出
C18: （十二）城乡社区支出
C19: （十三）农林水支出
C20: （十四）交通运输支出
C21: （十五）资源勘探工业信息等支出
C22: （十六）商业服务业等支出
C23: （十七）金融支出
C24: （十八）援助其他地区支出
C25: （十九）自然资源海洋气象等支出
C26: （二十）住房保障支出 | D26: 90.78
C27: （二十一）粮油物资储备支出
C28: （二十二）国有资本经营预算支出
C29: （二十三）灾害防治及应急管理支出
C30: （二十四）预备费
C31: （二十五）其他支出
C32: （二十六）转移性支出
C33: （二十七）债务还本支出
C34: （二十八）债务付息支出
C35: （二十九）债务发行费用支出
C36: （三十）抗疫特别国债安排的支出
C38: 二、年终结转结余 | D38: 0
A40: 收 入 总 计 | B40: =B6+B13 -> 1,990.74 | C40: 支 出 总 计 | D40: =D6+D38 -> 1,990.74

Sheet 7一般公共预算支出表
A2: 一般公共预算支出表
A3: 单位：岳阳县人力资源和社会保障局 | K3: 金额单位：万元
A4: 功能科目 | D4: 科目编码 | E4: 科目名称 | F4: 合计 | G4: 基本支出 | L4: 项目支出
G5: 小计 | H5: 人员经费 | K5: 公用经费
A6: 类 | B6: 款 | C6: 项 | H6: 工资福利支出 | I6: 商品和服务支出 | J6: 对个人和家庭的补助
E7: 合计 | F7: =F8 -> 1,990.74 | G7: =G8 -> 1,612.65 | H7: 1,216.19 | I7: 327.16 | J7: 0.00 | K7: 69.30 | L7: 378.09
D8: 436 | E8: 岳阳县人力资源和社会保障局 | F8: =F9 -> 1,990.74 | G8: 1,612.65 | H8: 1,216.19 | I8: 327.16 | J8: 0.00 | K8: 69.30 | L8: 378.09
D9: 436002 | E9: 岳阳县人力资源和社会保障局机关 | F9: =G9+L9 -> 1,990.74 | G9: =H9+I9+J9+K9 -> 1,612.65 | H9: =H10+H11+H12+H13+H14+H15 -> 1,216.19 | I9: =I10+I11+I12+I13+I14+I15 -> 327.16 | J9: 0.00 | K9: 69.30 | L9: 378.09
A10: 208 | B10: 01 | C10: 01 | D10: 436002 | E10: 行政运行 | F10: =G10+L10 -> 1,321.39 | G10: =H10+I10+J10+K10 -> 1,321.39 | H10: 924.93 | I10: 327.16 | K10: 69.30
A11: 208 | B11: 01 | C11: 02 | D11: 436002 | E11: 一般行政管理事务 | F11: 378.09 | G11: =H11+I11+J11+K11 -> 0.00 | H11: 0 | L11: 378.09
A12: 208 | B12: 05 | C12: 05 | D12: 436002 | E12: 机关事业单位基本养老保险缴费支出 | F12: 121.04 | G12: 121.04 | H12: 121.04
A13: 208 | B13: 99 | C13: 99 | D13: 436002 | E13: 其他社会保障和就业支出 | F13: 15.14 | G13: 15.14 | H13: 15.14
A14: 210 | B14: 11 | C14: 01 | D14: 436002 | E14: 行政单位医疗 | F14: 64.30 | G14: 64.30 | H14: 64.30
A15: 221 | B15: 02 | C15: 01 | D15: 436002 | E15: 住房公积金 | F15: 90.78 | G15: 90.78 | H15: 90.78

Sheet 8一般公共预算基本支出表
F1: 部门公开表08
B2: 一般公共预算基本支出表
B3: 单位：岳阳县人力资源和社会保障局 | F3: 单位：万元
B4: 部门预算支出经济分类科目 | D4: 本年一般公共预算基本支出
B5: 科目代码 | C5: 科目名称 | D5: 合计 | E5: 人员经费 | F5: 公用经费
B6: 301 | C6: 工资福利支出 | D6: =E6 -> 1216.19 | E6: =E7+E8+E9+E10+E11+E12+E13+E14+E15 -> 1216.19
B7: 30107 | C7: 绩效工资 | D7: =E7 -> 106.31 | E7: 106.31
B8: 30101 | C8: 基本工资 | D8: 494.97 | E8: 494.97
B9: 30103 | C9: 奖金 | D9: 168.42 | E9: 168.42
B10: 30102 | C10: 津贴补贴 | D10: 155.23 | E10: 155.23
B11: 30108 | C11: 机关事业单位基本养老保险缴费 | D11: 121.04 | E11: 121.04
B12: 30112 | C12: 其他社会保障缴费 | D12: 7.57 | E12: 7.57
B13: 30110 | C13: 职工基本医疗保险缴费 | D13: 64.30 | E13: 64.30
B14: 30111 | C14: 公务员医疗补助缴费 | D14: 7.57 | E14: 7.57
B15: 30113 | C15: 住房公积金 | D15: 90.78 | E15: 90.78
B16: 合计 | D16: 1216.19
B17: 注：如本表格为空，则表示本年度未安排此项目。

Sheet 9工资福利(政府预算)
A2: 一般公共预算基本支出表--人员经费(工资福利支出)(按政府预算经济分类)
A3: 单位：岳阳县人力资源和社会保障局 | M3: 金额单位：万元
A4: 功能科目 | D4: 单位代码 | E4: 单位名称（功能科目） | F4: 总 计 | G4: 机关工资福利支出 | L4: 对事业单位经常性补助
A5: 类 | B5: 款 | C5: 项 | G5: 合计 | H5: 工资奖金津补贴 | I5: 社会保障缴费 | J5: 住房公积金 | K5: 其他工资福利支出 | L5: 合计 | M5: 工资福利支出 | N5: 其他对事业单位补助
E6: 合计 | F6: =F7 -> 1,216.19 | G6: =G7 -> 1,216.19 | H6: 0.00 | I6: 0.00 | J6: 0.00 | K6: 0.00 | L6: 0.00 | M6: 0.00 | N6: 0.00
D7: 436 | E7: 岳阳县人力资源和社会保障局 | F7: =F8 -> 1,216.19 | G7: 1,216.19 | H7: 0.00 | I7: 0.00 | J7: 0.00 | K7: 0.00 | L7: 0.00 | M7: 0.00 | N7: 0.00
D8: 436002 | E8: 岳阳县人力资源和社会保障局机关 | F8: =G8 -> 1,216.19 | G8: =G9+G10+G11+G12+G13 -> 1,216.19
A9: 208 | B9: 01 | C9: 01 | D9: 436002 | E9: 行政运行 | F9: =G9 -> 924.93 | G9: =H9+I9+J9+K9 -> 924.93 | H9: 924.93
A10: 208 | B10: 05 | C10: 05 | D10: 436002 | E10: 机关事业单位基本养老保险缴费支出 | F10: 121.04 | G10: 121.04 | I10: 121.04
A11: 208 | B11: 99 | C11: 99 | D11: 436002 | E11: 其他社会保障和就业支出 | F11: 15.14 | G11: 15.14 | I11: 15.14
A12: 210 | B12: 11 | C12: 01 | D12: 436002 | E12: 行政单位医疗 | F12: 64.30 | G12: 64.30 | I12: 64.30
A13: 221 | B13: 02 | C13: 01 | D13: 436002 | E13: 住房公积金 | F13: 90.78 | G13: 90.78 | J13: 90.78

Sheet 10工资福利
A2: 一般公共预算基本支出表--人员经费(工资福利支出)(按部门预算经济分类)
A3: 单位：岳阳县人力资源和社会保障局 | U3: 金额单位：万元
A4: 功能科目 | D4: 单位代码 | E4: 单位名称（功能科目） | F4: 总 计 | G4: 工资津补贴 | L4: 社会保障缴费 | R4: 住房公积金 | S4: 其他工资福利支出
A5: 类 | B5: 款 | C5: 项 | G5: 合计 | H5: 基本工资 | I5: 津贴补贴 | J5: 奖金 | K5: 绩效工资 | L5: 合计 | M5: 机关事业单位基本养老保险缴费 | N5: 职业年金缴费 | O5: 职工基本医疗保险缴费 | P5: 公务员医疗补助缴费 | Q5: 其他社会保障缴费 | S5: 合计 | T5: 伙食补助费 | U5: 医疗费 | V5: 其他工资福利支出
E6: 合计 | F6: =F7 -> 1,216.19 | G6: =G7 -> 924.93 | H6: 494.97 | I6: 155.23 | J6: 168.42 | K6: 106.31 | L6: 200.48 | M6: 121.04 | N6: 0.00 | O6: 64.30 | P6: 7.57 | Q6: 7.57 | R6: 90.78 | S6: 0.00 | T6: 0.00 | U6: 0.00 | V6: 0.00
D7: 436 | E7: 岳阳县人力资源和社会保障局 | F7: =F8 -> 1,216.19 | G7: 924.93 | H7: 494.97 | I7: 155.23 | J7: 168.42 | K7: 106.31 | L7: 200.48 | M7: 121.04 | N7: 0.00 | O7: 64.30 | P7: 7.57 | Q7: 7.57 | R7: 90.78 | S7: 0.00 | T7: 0.00 | U7: 0.00 | V7: 0.00
D8: 436002 | E8: 岳阳县人力资源和社会保障局机关 | F8: =F9+F10+F11+F12+F13 -> 1,216.19 | G8: =G9+G10+G11+G12+G13 -> 924.93 | H8: 494.97 | I8: 155.23 | J8: 168.42 | K8: 106.31 | L8: 200.48 | M8: 121.04 | N8: 0.00 | O8: 64.30 | P8: 7.57 | Q8: 7.57 | R8: 90.78 | S8: 0.00 | T8: 0.00 | U8: 0.00 | V8: 0.00
A9: 208 | B9: 01 | C9: 01 | D9: 436002 | E9: 行政运行 | F9: =G9+L9+R9+S9 -> 924.93 | G9: =H9+I9+J9+K9 -> 924.93 | H9: 494.97 | I9: 155.23 | J9: 168.42 | K9: 106.31
A10: 208 | B10: 05 | C10: 05 | D10: 436002 | E10: 机关事业单位基本养老保险缴费支出 | F10: =G10+L10+R10+S10 -> 121.04 | L10: =M10+N10+O10+P10+Q10 -> 121.04 | M10: 121.04
A11: 208 | B11: 99 | C11: 99 | D11: 436002 | E11: 其他社会保障和就业支出 | F11: 15.14 | L11: =M11+N11+O11+P11+Q11 -> 15.14 | P11: 7.57 | Q11: 7.57
A12: 210 | B12: 11 | C12: 01 | D12: 436002 | E12: 行政单位医疗 | F12: 64.30 | L12: 64.30 | O12: 64.30
A13: 221 | B13: 02 | C13: 01 | D13: 436002 | E13: 住房公积金 | F13: 90.78 | R13: 90.78

Sheet 11个人家庭(政府预算)
A2: 一般公共预算基本支出表--人员经费(对个人和家庭的补助)(按政府预算经济分类)
A3: 单位：岳阳县人力资源和社会保障局 | J3: 金额单位：万元
A4: 功能科目 | D4: 单位代码 | E4: 单位名称（功能科目） | F4: 总计 | G4: 社会福利和救济 | H4: 助学金 | I4: 个人农业生产补贴 | J4: 离退休费 | K4: 其他对个人和家庭的补助
A5: 类 | B5: 款 | C5: 项
E6: 合计

Sheet 12个人家庭
A2: 一般公共预算基本支出表--人员经费(对个人和家庭的补助)（按部门预算经济分类）
A3: 单位：岳阳县人力资源和社会保障局 | Q3: 金额单位：万元
A4: 功能科目 | D4: 单位代码 | E4: 单位名称（功能科目） | F4: 总计 | G4: 离休费 | H4: 退休费 | I4: 退职（役）费 | J4: 抚恤金 | K4: 生活补助 | L4: 救济费 | M4: 医疗费补助 | N4: 助学金 | O4: 奖励金 | P4: 代缴社会保险费 | Q4: 个人农业生产补贴 | R4: 其他对个人和家庭的补助
A5: 类 | B5: 款 | C5: 项
E6: 合计

Sheet 13商品服务(政府预算)
A2: 一般公共预算基本支出表--公用经费(商品和服务支出)（按政府预算经济分类）
A3: 单位：岳阳县人力资源和社会保障局 | S3: 金额单位：万元
A4: 功能科目 | D4: 单位代码 | E4: 单位名称（功能科目） | F4: 总计 | G4: 机关商品和服务支出 | R4: 对事业单位经常性补助
A5: 类 | B5: 款 | C5: 项 | G5: 合计 | H5: 办公经费 | I5: 会议费 | J5: 培训费 | K5: 专用材料购置费 | L5: 委托业务费 | M5: 公务接待费 | N5: 因公出国（境）费用 | O5: 公务用车运行维护费 | P5: 维修(护)费 | Q5: 其他商品和服务支出 | R5: 合计 | S5: 商品和服务支出 | T5: 其他对事业单位补助
E6: 合计 | F6: =F7 -> 69.30 | G6: =G7 -> 69.30 | H6: 55.20 | I6: 0.30 | J6: 1.80 | K6: 0.00 | L6: 0.00 | M6: 8.50 | N6: 0.00 | O6: 0.00 | P6: 0.00 | Q6: 3.50 | R6: 0.00 | S6: 0.00 | T6: 0.00
D7: 436 | E7: 岳阳县人力资源和社会保障局 | F7: =F8 -> 69.30 | G7: 69.30 | H7: 55.20 | I7: 0.30 | J7: 1.80 | K7: 0.00 | L7: 0.00 | M7: 8.50 | N7: 0.00 | O7: 0.00 | P7: 0.00 | Q7: 3.50 | R7: 0.00 | S7: 0.00 | T7: 0.00
D8: 436002 | E8: 岳阳县人力资源和社会保障局机关 | F8: =F9 -> 69.30 | G8: =G9 -> 69.30 | H8: 55.20 | I8: 0.30 | J8: 1.80 | K8: 0.00 | L8: 0.00 | M8: 8.50 | N8: 0.00 | O8: 0.00 | P8: 0.00 | Q8: 3.50 | R8: 0.00 | S8: 0.00 | T8: 0.00
A9: 208 | B9: 01 | C9: 01 | D9: 436002 | E9: 行政运行 | F9: 69.30 | G9: =H9+I9+J9+K9+L9+M9+N9+O9+P9+Q9 -> 69.30 | H9: 55.20 | I9: 0.30 | J9: 1.80 | M9: 8.5 | Q9: 3.50 | R9: =F9-G9 -> 0.00

Sheet 14商品服务
A2: 一般公共预算基本支出表--公用经费(商品和服务支出)(按部门预算经济分类)
A3: 单位：岳阳县人力资源和社会保障局 | AC3: 金额单位：万元
A4: 功能科目 | D4: 单位代码 | E4: 单位名称（功能科目） | F4: 总 计 | G4: 办公费 | H4: 印刷费 | I4: 咨询费 | J4: 手续费 | K4: 水费 | L4: 电费 | M4: 邮电费 | N4: 取暖费 | O4: 物业管理费 | P4: 差旅费 | Q4: 因公出国（境）费用 | R4: 维修(护)费 | S4: 租赁费 | T4: 会议费 | U4: 培训费 | V4: 公务接待费 | W4: 专用材料费 | X4: 被装购置费 | Y4: 专用燃料费 | Z4: 劳务费 | AA4: 委托业务费 | AB4: 工会经费 | AC4: 福利费 | AD4: 公务用车运行维护费 | AE4: 其他交通费用 | AF4: 税金及附加费用 | AG4: 其他商品和服务支出
A5: 类 | B5: 款 | C5: 项
E6: 合计 | F6: =F7 -> 69.30 | G6: 13.46 | H6: 3.08 | I6: 0.10 | J6: 0.15 | K6: 1.05 | L6: 4.20 | M6: 8.74 | O6: 4.70 | P6: 10.34 | R6: 2.28 | T6: 0.30 | U6: 1.80 | V6: 8.50 | AB6: 6.80 | AC6: 0.30 | AG6: 3.50
D7: 436 | E7: 岳阳县人力资源和社会保障局 | F7: =F8 -> 69.30 | G7: 13.46 | H7: 3.08 | I7: 0.10 | J7: 0.15 | K7: 1.05 | L7: 4.20 | M7: 8.74 | O7: 4.70 | P7: 10.34 | R7: 2.28 | T7: 0.30 | U7: 1.80 | V7: 8.50 | AB7: 6.80 | AC7: 0.30 | AG7: 3.50
D8: 436002 | E8: 岳阳县人力资源和社会保障局机关 | F8: =F9 -> 69.30 | G8: 13.46 | H8: 3.08 | I8: 0.10 | J8: 0.15 | K8: 1.05 | L8: 4.20 | M8: 8.74 | O8: 4.70 | P8: 10.34 | R8: 2.28 | T8: 0.30 | U8: 1.80 | V8: 8.50 | AB8: 6.80 | AC8: 0.30 | AG8: 3.50
A9: 208 | B9: 01 | C9: 01 | D9: 436002 | E9: 行政运行 | F9: 69.30 | G9: 13.46 | H9: 3.08 | I9: 0.10 | J9: 0.15 | K9: 1.05 | L9: 4.20 | M9: 8.74 | O9: 4.70 | P9: 10.34 | R9: 2.28 | T9: 0.30 | U9: 1.80 | V9: 8.50 | AB9: 6.80 | AC9: 0.30 | AG9: 3.50

Sheet 15三公
A2: 一般公共预算“三公”经费支出表
A3: 单位：岳阳县人力资源和社会保障局 | G3: 金额单位：万元
A4: 单位编码 | B4: 单位名称 | C4: “三公”经费合计 | D4: 因公出国（境）费 | E4: 公务用车购置及运行费 | H4: 公务接待费
E5: 小计 | F5: 公务用车购置费 | G5: 公务用车运行费
B6: 合计 | C6: =C7 -> 8.50 | H6: =H8 -> 8.50
A7: 436 | B7: 岳阳县人力资源和社会保障局 | C7: =C8 -> 8.50 | H7: =H8 -> 8.50
A8: 436002 | B8: 岳阳县人力资源和社会保障局机关 | C8: =D8+E8+H8 -> 8.50 | H8: 8.50

Sheet 16政府性基金
A2: 政府性基金预算支出表
A3: 单位：岳阳县人力资源和社会保障局 | G3: 金额单位：万元
A4: 科目编码 | B4: 科目名称 | C4: 合计 | D4: 本年政府性基金预算支出 | H4: 项目支出
D5: 小计 | E5: 人员经费 | G5: 公用经费
E6: 工资福利支出 | F6: 对个人和家庭的补助
B7: 合计

Sheet 17政府性基金(政府预算)
A2: 政府性基金预算支出分类汇总表（按政府预算经济分类）
A3: 单位：岳阳县人力资源和社会保障局 | S3: 金额单位：万元
A4: 功能科目 | D4: 单位代码 | E4: 单位名称（功能科目） | F4: 总 计 | G4: 机关工资福利支出 | H4: 机关商品和服务支出 | I4: 机关资本性支出(一) | J4: 机关资本性支出(二) | K4: 对事业单位经常性补助 | L4: 对事业单位资本性补助 | M4: 对企业补助 | N4: 对企业资本性支出 | O4: 对个人和家庭的补助 | P4: 对社会保障基金补助 | Q4: 债务利息及费用支出 | R4: 债务还本支出 | S4: 转移性支出 | T4: 其他支出
A5: 类 | B5: 款 | C5: 项
E6: 合计

Sheet 18政府性基金（部门预算）
A2: 政府性基金预算支出分类汇总表（按部门预算经济分类）
A3: 单位：岳阳县人力资源和社会保障局 | P3: 金额单位：万元
A4: 功能科目 | D4: 单位代码 | E4: 单位名称（功能科目） | F4: 总 计 | G4: 基本支出 | K4: 项目支出
A5: 类 | B5: 款 | C5: 项 | G5: 合计 | H5: 工资福利支出 | I5: 一般商品和服务支出 | J5: 对个人和家庭的补助 | K5: 合计 | L5: 按项目管理的商品和服务支出 | M5: 按项目管理的对个人和家庭的补助 | N5: 债务利息及费用支出 | O5: 资本性支出（基本建设） | P5: 资本性支出 | Q5: 对企业补助（基本建设） | R5: 对企业补助 | S5: 对社会保障基金补助 | T5: 其他支出
E6: 合计

Sheet 19国有资本经营预算
A2: 国有资本经营预算支出表
A3: 单位：岳阳县人力资源和社会保障局 | H3: 金额单位：万元
A4: 科目编码 | B4: 科目名称 | C4: 合计 | D4: 本年国有资本经营预算支出 | H4: 项目支出
D5: 小计 | E5: 人员经费 | G5: 公用经费
E6: 工资福利支出 | F6: 对个人和家庭的补助
B7: 合计

Sheet 20财政专户管理资金
A2: 财政专户管理资金预算支出表
A3: 单位：岳阳县人力资源和社会保障局 | H3: 金额单位：万元
A4: 科目编码 | B4: 科目名称 | C4: 合计 | D4: 本年财政专户管理资金预算支出 | H4: 项目支出
D5: 小计 | E5: 人员经费 | G5: 公用经费
E6: 工资福利支出 | F6: 对个人和家庭的补助
B7: 合计

Sheet 21专项清单
A2: 专项资金预算汇总表
A3: 单位：岳阳县人力资源和社会保障局 | N3: 金额单位：万元
A4: 单位代码 | C4: 单位名称（专项名称） | D4: 预算额度 | N4: 预算编制方式
D5: 总计 | E5: 一般公共预算 | K5: 政府性基金 | L5: 国有资本经营预算 | M5: 社会保险基金预算资金 | N5: 编入部门预算金额 | O5: 财政代编金额
E6: 一般公共预算小计 | F6: 经费拨款 | G6: 纳入一般公共预算管理的非税收入 | H6: 一般债券 | I6: 外国政府和国际组织贷款 | J6: 外国政府和国际组织赠款
C7: 合计
A8: 436 | C8: 岳阳县人力资源和社会保障局 | D8: =D9+D10+D11+D12+D13+D14+D15+D16+D17+D18+D19+D20+D21+D22 -> 378.09 | E8: =F8+G8 -> 378.09 | F8: =F9+F10+F12+F11+F13+F14+F15+F16+F17+F18+F19+F20+F21+F22 -> 368.09 | G8: 10.00
A9: 436002 | B9: 特定目标类工资年报 | C9: 工资年报 | D9: =E9 -> 3.00 | E9: =F9+G9 -> 3.00 | F9: 3.00
A10: 436002 | B10: 特定目标类劳动保障监察 | C10: 劳动保障监察 | D10: =E10 -> 18.00 | E10: 18.00 | F10: 18.00
A11: 436002 | B11: 特定目标类人力资源 | C11: 人力资源 | D11: 5.00 | E11: 5.00 | F11: 0.00 | G11: 5.00
A12: 436002 | B12: 特定目标类事业单位公开招聘及培训 | C12: 事业单位公开招聘及培训 | D12: 134.00 | E12: 134.00 | F12: 134.00
A13: 436002 | B13: 特定目标类执法仲裁 | C13: 执法仲裁 | D13: 17.00 | E13: 17.00 | F13: 17.00
A14: 436002 | C14: 退休人员身份认证 | D14: 17.00 | E14: 17.00 | F14: 17.00
A15: 436002 | C15: 网络维护 | D15: 18.00 | E15: 18.00 | F15: 18.00
A16: 436002 | C16: 农保 | D16: 33.00 | E16: 33.00 | F16: 33.00
A17: 436002 | C17: 就业工作 | D17: 23.00 | E17: 23.00 | F17: 23.00
A18: 436002 | C18: 工伤保险工作 | D18: 14.00 | E18: 14.00 | F18: 14.00
A19: 436002 | C19: 退休金人员身份认证及网络维护 | D19: 17.00 | E19: 17.00 | F19: 17.00
A20: 436002 | C20: 档案管理经费 | D20: 18.00 | E20: 18.00 | F20: 13.00 | G20: 5
A21: 436002 | C21: 社会基金监管经费 | D21: 50.00 | E21: 50.00 | F21: 50.00
A22: 436002 | C22: 专技管理经费 | D22: 11.09 | E22: 11.09 | F22: 11.09

Sheet 22项目支出绩效目标表
C2: 项目支出绩效目标表
A3: 单位：岳阳县人力资源和社会保障局 | L3: 金额单位：万元
A4: 单位代码 | B4: 单位（专项）名称 | C4: 资金总额 | D4: 实施期绩效目标 | E4: 绩效指标
E5: 一级指标 | F5: 二级指标 | G5: 三级指标 | H5: 指标值 | I5: 指标值内容 | J5: 评（扣分标准） | K5: 度量单位 | L5: 指标值类型 | M5: 备注
A7: 436002 | B7: 工资年报 | C7: 3.00 | D7: 工资年报完善完成 | E7: 效益指标 | F7: 生态效益指标 | G7: 无 | H7: 无 | I7: 无 | J7: 无 | K7: 无 | L7: 定性
F8: 社会效益指标 | G8: 无 | H8: 无 | I8: 无 | J8: 无 | K8: 无 | L8: 定性
F9: 经济效益指标 | G9: 无 | H9: 无 | I9: 无 | J9: 无 | K9: 无 | L9: 定性
E10: 产出指标 | F10: 时效指标 | G10: 全年按时完成任务 | H10: 12月前 | I10: 全年按时完成任务 | J10: 未达指标值酌情扣分 | K10: 年 | L10: 定量
F11: 数量指标 | G11: 完成单位所有工资调整 | H11: 全年 | I11: 完成单位所有工资调整 | J11: 未达指标值酌情扣分 | K11: 年 | L11: 定量
F12: 生态环境成本指标 | G12: 无 | H12: 无 | I12: 无 | J12: 无 | K12: 无 | L12: 定量
F13: 社会成本指标 | G13: 无 | H13: 无 | I13: 无负面影响 | J13: 无 | K13: 无 | L13: 定性
F14: 经济成本指标 | G14: 预算控制数 | H14: 30000 | I14: 工资年报 | J14: 未达指标值酌情扣分 | K14: 元 | L14: 定量
F15: 质量指标 | G15: 无 | H15: 无 | I15: 无 | J15: 无 | K15: 无 | L15: 定性
E16: 满意度指标 | F16: 服务对象满意度指标 | G16: 服务对象满意度 | H16: ≥98 | I16: 服务对象满意度 | J16: 未达指标值酌情扣分 | K16: % | L16: ≥
A17: 436002 | B17: 劳动保障监察 | C17: 18.00 | D17: 劳动保障监察 | E17: 产出指标 | F17: 经济成本指标 | G17: 预算控制数 | H17: 180000 | I17: 预算控制数 | J17: 未达指标值酌情扣分 | K17: 元 | L17: 定性
F18: 社会成本指标 | G18: 无 | H18: 无 | I18: 无负面影响 | J18: 无 | K18: 无 | L18: 定性
F19: 时效指标 | G19: 全年按时完成任务 | H19: 12月前 | I19: 全年按时完成任务 | J19: 未达指标值酌情扣分 | K19: 年 | L19: 定性
F20: 质量指标 | G20: 无 | H20: 无 | I20: 无 | J20: 无 | K20: 无 | L20: 定性
F21: 数量指标 | G21: 劳动保障全部实施 | H21: 0 | I21: 劳动保障全部实施 | J21: 未达指标值酌情扣分 | K21: 无 | L21: 定性
F22: 生态环境成本指标 | G22: 无 | H22: 无 | I22: 无 | J22: 无 | K22: 无 | L22: 定量
E23: 满意度指标 | F23: 服务对象满意度指标 | G23: 服务对象满意度 | H23: ≥98 | I23: 服务对象满意度 | J23: 未达指标值酌情扣分 | K23: % | L23: ≥
E24: 效益指标 | F24: 生态效益指标 | G24: 无 | H24: 无 | I24: 无 | J24: 无 | K24: 无 | L24: 定性
F25: 社会效益指标 | G25: 挽回经济损失 | H25: 2023年12月31日前 | I25: 保障农民工工资 | J25: 未达指标值酌情扣分 | K25: 年 | L25: 定性
F26: 经济效益指标 | G26: 无 | H26: 无 | I26: 无 | J26: 无 | K26: 无 | L26: 定性
A27: 436002 | B27: 人力资源 | C27: 5.00 | D27: 人力资源 | E27: 产出指标 | F27: 经济成本指标 | G27: 预算控制数 | H27: 50000 | I27: 人力资源 | J27: 未达指标值酌情扣分 | K27: 元 | L27: 定量
F28: 质量指标 | G28: 无 | H28: 无 | I28: 无 | J28: 未达指标值酌情扣分 | K28: 无 | L28: 定性
F29: 数量指标 | G29: 无 | H29: 无 | I29: 无 | J29: 未达指标值酌情扣分 | K29: 无 | L29: 定性
F30: 生态环境成本指标 | G30: 无 | H30: 无 | I30: 无 | J30: 无 | K30: 无 | L30: 定量
F31: 社会成本指标 | G31: 无 | H31: 无 | I31: 无负面影响 | J31: 无 | K31: 无 | L31: 定性
F32: 时效指标 | G32: 全年按时完成任务 | H32: 12月前 | I32: 全年按时完成任务 | J32: 未达指标值酌情扣分 | K32: 年 | L32: 定量
E33: 效益指标 | F33: 生态效益指标 | G33: 无 | H33: 无 | I33: 无 | J33: 未达指标值酌情扣分 | K33: 无 | L33: 定性
F34: 社会效益指标 | G34: 无 | H34: 无 | I34: 无 | J34: 未达指标值酌情扣分 | K34: 无 | L34: 定性
F35: 经济效益指标 | G35: 无 | H35: 无 | I35: 无 | J35: 未达指标值酌情扣分 | K35: 无 | L35: 定性
E36: 满意度指标 | F36: 服务对象满意度指标 | G36: 满意度提高 | H36: ≥98 | I36: 服务对象满意度 | J36: 未达指标值酌情扣分 | K36: % | L36: ≥
A37: 436002 | B37: 事业单位公开招聘及培训 | C37: 134.00 | D37: 事业单位公开招聘及培训 | E37: 满意度指标 | F37: 服务对象满意度指标 | G37: 满意度提高 | H37: ≥98 | I37: 93% | J37: 未达指标值酌情扣分 | K37: % | L37: ≥
E38: 效益指标 | F38: 生态效益指标 | G38: 无 | H38: 无 | I38: 无 | J38: 未达指标值酌情扣分 | K38: 无 | L38: 定性
F39: 社会效益指标 | G39: 解决用人单位 | H39: 2023年12月31日前 | I39: 解决用人单位 | J39: 未达指标值酌情扣分 | K39: 无 | L39: 定性
F40: 经济效益指标 | G40: 无 | H40: 无 | I40: 无 | J40: 未达指标值酌情扣分 | K40: 无 | L40: 定性
E41: 产出指标 | F41: 时效指标 | G41: 全年按时完成任务 | H41: 12月前 | I41: 全年按时完成任务 | J41: 未达指标值酌情扣分 | K41: 次 | L41: 定量
F42: 质量指标 | G42: 无 | H42: 无 | I42: 无 | J42: 未达指标值酌情扣分 | K42: 无 | L42: 定性
F43: 数量指标 | G43: 完成全年两次单位招聘 | H43: 不少于2次 | I43: 不少于2次 | J43: 未达指标值酌情扣分 | K43: 次 | L43: 定量
F44: 生态环境成本指标 | G44: 无 | H44: 无 | I44: 无 | J44: 无 | K44: 无 | L44: 定量
F45: 经济成本指标 | G45: 预算控制数 | H45: 1340000 | I45: 事业单位公开招聘及培训 | J45: 未达指标值酌情扣分 | K45: 元 | L45: 定量
F46: 社会成本指标 | G46: 无 | H46: 无 | I46: 无负面影响 | J46: 无 | K46: 无 | L46: 定性
A47: 436002 | B47: 执法仲裁 | C47: 17.00 | D47: 执法仲裁社会满意度提高 | E47: 产出指标 | F47: 社会成本指标 | G47: 无 | H47: 无 | I47: 无负面影响 | J47: 无 | K47: 无 | L47: 定性
F48: 生态环境成本指标 | G48: 无 | H48: 无 | I48: 无 | J48: 无 | K48: 无 | L48: 定量
F49: 数量指标 | G49: 执法仲裁无投诉 | H49: 0 | I49: 0 | J49: 未达指标值酌情扣分 | K49: 无 | L49: 定量
F50: 质量指标 | G50: 无 | H50: 无 | I50: 无 | J50: 未达指标值酌情扣分 | K50: 无 | L50: 定性
F51: 经济成本指标 | G51: 预算控制数 | H51: 17000 | I51: 执法仲裁 | J51: 未达指标值酌情扣分 | K51: 元 | L51: 定量
F52: 时效指标 | G52: 全年按时完成任务 | H52: 12月前 | I52: 全年按时完成任务 | J52: 未达指标值酌情扣分 | K52: 年 | L52: 定性
E53: 满意度指标 | F53: 服务对象满意度指标 | G53: 服务对象满意度 | H53: ≥98 | I53: 服务对象满意度 | J53: 未达指标值酌情扣分 | K53: % | L53: ≥
E54: 效益指标 | F54: 经济效益指标 | G54: 无 | H54: 无 | I54: 无 | J54: 无 | K54: 无 | L54: 定性
F55: 社会效益指标 | G55: 挽回经济损失 | H55: 2022年12月31日前 | I55: 依法仲裁 | J55: 未达指标值酌情扣分 | K55: 年 | L55: 定性
F56: 生态效益指标 | G56: 无 | H56: 无 | I56: 无 | J56: 无 | K56: 无 | L56: 定性
A57: 436002 | B57: 人力资源管理经费 | C57: 5.00 | D57: 人力资源管理经费 | E57: 满意度指标 | F57: 服务对象满意度指标 | G57: 满意度提高 | H57: ≥98 | I57: 93% | J57: 未达指标值酌情扣分 | K57: % | L57: ≥
E58: 效益指标 | F58: 生态效益指标 | G58: 无 | H58: 无 | I58: 无 | J58: 未达指标值酌情扣分 | K58: 无 | L58: 定性
F59: 社会效益指标 | G59: 解决就业 | H59: 2023年12月31日前 | I59: 解决就业 | J59: 未达指标值酌情扣分 | K59: 无 | L59: 定性
F60: 经济效益指标 | G60: 无 | H60: 无 | I60: 无 | J60: 未达指标值酌情扣分 | K60: 无 | L60: 定性
E61: 产出指标 | F61: 时效指标 | G61: 人力资源 | H61: 12月前 | I61: 全年按时完成任务 | J61: 未达指标值酌情扣分 | K61: 次 | L61: 定量
F62: 质量指标 | G62: 无 | H62: 无 | I62: 无 | J62: 未达指标值酌情扣分 | K62: 无 | L62: 定性
F63: 生态环境成本指标 | G63: 无 | H63: 无 | I63: 无 | J63: 无 | K63: 无 | L63: 定量
F64: 经济成本指标 | G64: 预算控制数 | H64: 50000 | I64: 解决就业 | J64: 未达指标值酌情扣分 | K64: 元 | L64: 定量
F65: 社会成本指标 | G65: 无 | H65: 无 | I65: 无负面影响 | J65: 无 | K65: 无 | L65: 定性
A66: 436002 | B66: 退休人员身份认证 | C66: 17.00 | D66: 退休人员身份认证 | E66: 满意度指标 | F66: 服务对象满意度指标 | G66: 满意度提高 | H66: ≥98 | I66: 93% | J66: 未达指标值酌情扣分 | K66: % | L66: ≥
E67: 效益指标 | F67: 生态效益指标 | G67: 无 | H67: 无 | I67: 无 | J67: 未达指标值酌情扣分 | K67: 无 | L67: 定性
F68: 社会效益指标 | G68: 社保管理 | H68: 2023年12月31日前 | I68: 社保管理 | J68: 未达指标值酌情扣分 | K68: 无 | L68: 定性
F69: 经济效益指标 | G69: 无 | H69: 无 | I69: 无 | J69: 未达指标值酌情扣分 | K69: 无 | L69: 定性
E70: 产出指标 | F70: 时效指标 | G70: 全年按时完成任务 | H70: 12月前 | I70: 全年按时完成任务 | J70: 未达指标值酌情扣分 | K70: 次 | L70: 定量
F71: 质量指标 | G71: 无 | H71: 无 | I71: 无 | J71: 未达指标值酌情扣分 | K71: 无 | L71: 定性
F72: 数量指标 | G72: 无 | H72: 无 | I72: 无 | J72: 无 | K72: 无 | L72: 定量
F73: 生态环境成本指标 | G73: 无 | H73: 无 | I73: 无 | J73: 无 | K73: 无 | L73: 定量
F74: 经济成本指标 | G74: 预算控制数 | H74: 170000 | I74: 社保管理 | J74: 未达指标值酌情扣分 | K74: 元 | L74: 定量
F75: 社会成本指标 | G75: 无 | H75: 无 | I75: 无负面影响 | J75: 无 | K75: 无 | L75: 定性
A76: 436002 | B76: 网络维护 | C76: 18.00 | D76: 网络维护 | E76: 满意度指标 | F76: 服务对象满意度指标 | G76: 满意度提高 | H76: ≥98 | I76: 93% | J76: 未达指标值酌情扣分 | K76: % | L76: ≥
E77: 效益指标 | F77: 生态效益指标 | G77: 无 | H77: 无 | I77: 无 | J77: 未达指标值酌情扣分 | K77: 无 | L77: 定性
F78: 社会效益指标 | G78: 全局网络安全 | H78: 2023年12月31日前 | I78: 全局网络安全 | J78: 未达指标值酌情扣分 | K78: 无 | L78: 定性
F79: 经济效益指标 | G79: 无 | H79: 无 | I79: 无 | J79: 未达指标值酌情扣分 | K79: 无 | L79: 定性
E80: 产出指标 | F80: 时效指标 | G80: 全年按时完成任务 | H80: 12月前 | I80: 全年按时完成任务 | J80: 未达指标值酌情扣分 | K80: 次 | L80: 定量
F81: 质量指标 | G81: 无 | H81: 无 | I81: 无 | J81: 未达指标值酌情扣分 | K81: 无 | L81: 定性
F82: 数量指标 | G82: 无 | H82: 无 | I82: 无 | J82: 无 | K82: 无 | L82: 定量
F83: 生态环境成本指标 | G83: 无 | H83: 无 | I83: 无 | J83: 无 | K83: 无 | L83: 定量
F84: 经济成本指标 | G84: 预算控制数 | H84: 180000 | I84: 全局网络安全 | J84: 未达指标值酌情扣分 | K84: 元 | L84: 定量
F85: 社会成本指标 | G85: 无 | H85: 无 | I85: 无负面影响 | J85: 无 | K85: 无 | L85: 定性
A86: 436002 | B86: 农保 | C86: 33.00 | D86: 农保 | E86: 满意度指标 | F86: 服务对象满意度指标 | G86: 满意度提高 | H86: ≥98 | I86: 93% | J86: 未达指标值酌情扣分 | K86: % | L86: ≥
E87: 效益指标 | F87: 生态效益指标 | G87: 无 | H87: 无 | I87: 无 | J87: 未达指标值酌情扣分 | K87: 无 | L87: 定性
F88: 社会效益指标 | G88: 农保认证 | H88: 2023年12月31日前 | I88: 农保认证 | J88: 未达指标值酌情扣分 | K88: 无 | L88: 定性
F89: 经济效益指标 | G89: 无 | H89: 无 | I89: 无 | J89: 未达指标值酌情扣分 | K89: 无 | L89: 定性
E90: 产出指标 | F90: 时效指标 | G90: 全年按时完成任务 | H90: 12月前 | I90: 全年按时完成任务 | J90: 未达指标值酌情扣分 | K90: 次 | L90: 定量
F91: 质量指标 | G91: 无 | H91: 无 | I91: 无 | J91: 未达指标值酌情扣分 | K91: 无 | L91: 定性
F92: 数量指标 | G92: 无 | H92: 无 | I92: 无 | J92: 无 | K92: 无 | L92: 定量
F93: 生态环境成本指标 | G93: 无 | H93: 无 | I93: 无 | J93: 无 | K93: 无 | L93: 定量
F94: 经济成本指标 | G94: 预算控制数 | H94: 330000 | I94: 农保认证 | J94: 未达指标值酌情扣分 | K94: 元 | L94: 定量
F95: 社会成本指标 | G95: 无 | H95: 无 | I95: 无负面影响 | J95: 无 | K95: 无 | L95: 定性
A96: 436002 | B96: 就业工作 | C96: 23.00 | D96: 就业工作 | E96: 满意度指标 | F96: 服务对象满意度指标 | G96: 满意度提高 | H96: ≥98 | I96: 93% | J96: 未达指标值酌情扣分 | K96: % | L96: ≥
E97: 效益指标 | F97: 生态效益指标 | G97: 无 | H97: 无 | I97: 无 | J97: 未达指标值酌情扣分 | K97: 无 | L97: 定性
F98: 社会效益指标 | G98: 解决就业 | H98: 2023年12月31日前 | I98: 解决就业 | J98: 未达指标值酌情扣分 | K98: 无 | L98: 定性
F99: 经济效益指标 | G99: 无 | H99: 无 | I99: 无 | J99: 未达指标值酌情扣分 | K99: 无 | L99: 定性
E100: 产出指标 | F100: 时效指标 | G100: 全年按时完成任务 | H100: 12月前 | I100: 全年按时完成任务 | J100: 未达指标值酌情扣分 | K100: 次 | L100: 定量
F101: 质量指标 | G101: 无 | H101: 无 | I101: 无 | J101: 未达指标值酌情扣分 | K101: 无 | L101: 定性
F102: 数量指标 | G102: 无 | H102: 无 | I102: 无 | J102: 无 | K102: 无 | L102: 定量
F103: 生态环境成本指标 | G103: 无 | H103: 无 | I103: 无 | J103: 无 | K103: 无 | L103: 定量
F104: 经济成本指标 | G104: 预算控制数 | H104: 230000 | I104: 解决就业 | J104: 未达指标值酌情扣分 | K104: 元 | L104: 定量
F105: 社会成本指标 | G105: 无 | H105: 无 | I105: 无负面影响 | J105: 无 | K105: 无 | L105: 定性
A106: 436002 | B106: 工伤保险工作 | C106: 14.00 | D106: 工伤保险工作 | E106: 满意度指标 | F106: 服务对象满意度指标 | G106: 满意度提高 | H106: ≥98 | I106: 93% | J106: 未达指标值酌情扣分 | K106: % | L106: ≥
E107: 效益指标 | F107: 生态效益指标 | G107: 无 | H107: 无 | I107: 无 | J107: 未达指标值酌情扣分 | K107: 无 | L107: 定性
F108: 社会效益指标 | G108: 工伤认证 | H108: 2023年12月31日前 | I108: 工伤认证 | J108: 未达指标值酌情扣分 | K108: 无 | L108: 定性
F109: 经济效益指标 | G109: 无 | H109: 无 | I109: 无 | J109: 未达指标值酌情扣分 | K109: 无 | L109: 定性
E110: 产出指标 | F110: 时效指标 | G110: 全年按时完成任务 | H110: 12月前 | I110: 全年按时完成任务 | J110: 未达指标值酌情扣分 | K110: 次 | L110: 定量
F111: 质量指标 | G111: 无 | H111: 无 | I111: 无 | J111: 未达指标值酌情扣分 | K111: 无 | L111: 定性
F112: 数量指标 | G112: 无 | H112: 无 | I112: 无 | J112: 无 | K112: 无 | L112: 定量
F113: 生态环境成本指标 | G113: 无 | H113: 无 | I113: 无 | J113: 无 | K113: 无 | L113: 定量
F114: 经济成本指标 | G114: 预算控制数 | H114: 140000 | I114: 工伤认证 | J114: 未达指标值酌情扣分 | K114: 元 | L114: 定量
F115: 社会成本指标 | G115: 无 | H115: 无 | I115: 无负面影响 | J115: 无 | K115: 无 | L115: 定性
A116: 436002 | B116: 工伤保险工作 | C116: 14.00 | D116: 工伤保险工作 | E116: 满意度指标 | F116: 服务对象满意度指标 | G116: 满意度提高 | H116: ≥98 | I116: 93% | J116: 未达指标值酌情扣分 | K116: % | L116: ≥
E117: 效益指标 | F117: 生态效益指标 | G117: 无 | H117: 无 | I117: 无 | J117: 未达指标值酌情扣分 | K117: 无 | L117: 定性
F118: 社会效益指标 | G118: 工伤鉴定 | H118: 2023年12月31日前 | I118: 工伤鉴定 | J118: 未达指标值酌情扣分 | K118: 无 | L118: 定性
F119: 经济效益指标 | G119: 无 | H119: 无 | I119: 无 | J119: 未达指标值酌情扣分 | K119: 无 | L119: 定性
E120: 产出指标 | F120: 时效指标 | G120: 全年按时完成任务 | H120: 12月前 | I120: 全年按时完成任务 | J120: 未达指标值酌情扣分 | K120: 次 | L120: 定量
F121: 质量指标 | G121: 无 | H121: 无 | I121: 无 | J121: 未达指标值酌情扣分 | K121: 无 | L121: 定性
F122: 数量指标 | G122: 无 | H122: 无 | I122: 无 | J122: 无 | K122: 无 | L122: 定量
F123: 生态环境成本指标 | G123: 无 | H123: 无 | I123: 无 | J123: 无 | K123: 无 | L123: 定量
F124: 经济成本指标 | G124: 预算控制数 | H124: 140000 | I124: 工伤鉴定 | J124: 未达指标值酌情扣分 | K124: 元 | L124: 定量
F125: 社会成本指标 | G125: 无 | H125: 无 | I125: 无负面影响 | J125: 无 | K125: 无 | L125: 定性
A126: 436002 | B126: 退休人员身份认证及网络维护 | C126: 17.00 | D126: 退休人员身份认证及网络维护 | E126: 满意度指标 | F126: 服务对象满意度指标 | G126: 满意度提高 | H126: ≥98 | I126: 93% | J126: 未达指标值酌情扣分 | K126: % | L126: ≥
E127: 效益指标 | F127: 生态效益指标 | G127: 无 | H127: 无 | I127: 无 | J127: 未达指标值酌情扣分 | K127: 无 | L127: 定性
F128: 社会效益指标 | G128: 事业单位退休认证 | H128: 2023年12月31日前 | I128: 事业单位退休认证 | J128: 未达指标值酌情扣分 | K128: 无 | L128: 定性
F129: 经济效益指标 | G129: 无 | H129: 无 | I129: 无 | J129: 未达指标值酌情扣分 | K129: 无 | L129: 定性
E130: 产出指标 | F130: 时效指标 | G130: 全年按时完成任务 | H130: 12月前 | I130: 全年按时完成任务 | J130: 未达指标值酌情扣分 | K130: 次 | L130: 定量
F131: 质量指标 | G131: 无 | H131: 无 | I131: 无 | J131: 未达指标值酌情扣分 | K131: 无 | L131: 定性
F132: 数量指标 | G132: 无 | H132: 无 | I132: 无 | J132: 无 | K132: 无 | L132: 定量
F133: 生态环境成本指标 | G133: 无 | H133: 无 | I133: 无 | J133: 无 | K133: 无 | L133: 定量
F134: 经济成本指标 | G134: 预算控制数 | H134: 170000 | I134: 事业单位退休认证 | J134: 未达指标值酌情扣分 | K134: 元 | L134: 定量
F135: 社会成本指标 | G135: 无 | H135: 无 | I135: 无负面影响 | J135: 无 | K135: 无 | L135: 定性
A136: 436002 | B136: 档案管理经费 | C136: 18.00 | D136: 档案管理经费 | E136: 满意度指标 | F136: 服务对象满意度指标 | G136: 满意度提高 | H136: ≥98 | I136: 93% | J136: 未达指标值酌情扣分 | K136: % | L136: ≥
E137: 效益指标 | F137: 生态效益指标 | G137: 无 | H137: 无 | I137: 无 | J137: 未达指标值酌情扣分 | K137: 无 | L137: 定性
F138: 社会效益指标 | G138: 档案管理规范化 | H138: 2023年12月31日前 | I138: 档案管理规范化 | J138: 未达指标值酌情扣分 | K138: 无 | L138: 定性
F139: 经济效益指标 | G139: 无 | H139: 无 | I139: 无 | J139: 未达指标值酌情扣分 | K139: 无 | L139: 定性
E140: 产出指标 | F140: 时效指标 | G140: 全年按时完成任务 | H140: 12月前 | I140: 全年按时完成任务 | J140: 未达指标值酌情扣分 | K140: 次 | L140: 定量
F141: 质量指标 | G141: 无 | H141: 无 | I141: 无 | J141: 未达指标值酌情扣分 | K141: 无 | L141: 定性
F142: 数量指标 | G142: 无 | H142: 无 | I142: 无 | J142: 无 | K142: 无 | L142: 定量
F143: 生态环境成本指标 | G143: 无 | H143: 无 | I143: 无 | J143: 无 | K143: 无 | L143: 定量
F144: 经济成本指标 | G144: 预算控制数 | H144: 180000 | I144: 档案管理规范化 | J144: 未达指标值酌情扣分 | K144: 元 | L144: 定量
F145: 社会成本指标 | G145: 无 | H145: 无 | I145: 无负面影响 | J145: 无 | K145: 无 | L145: 定性
A146: 436002 | B146: 社保基金监管经费 | C146: 50.00 | D146: 社保基金监管经费 | E146: 满意度指标 | F146: 服务对象满意度指标 | G146: 满意度提高 | H146: ≥98 | I146: 93% | J146: 未达指标值酌情扣分 | K146: % | L146: ≥
E147: 效益指标 | F147: 生态效益指标 | G147: 无 | H147: 无 | I147: 无 | J147: 未达指标值酌情扣分 | K147: 无 | L147: 定性
F148: 社会效益指标 | G148: 社保基金安全监管 | H148: 2023年12月31日前 | I148: 社保基金安全监管 | J148: 未达指标值酌情扣分 | K148: 无 | L148: 定性
F149: 经济效益指标 | G149: 无 | H149: 无 | I149: 无 | J149: 未达指标值酌情扣分 | K149: 无 | L149: 定性
E150: 产出指标 | F150: 时效指标 | G150: 全年按时完成任务 | H150: 12月前 | I150: 全年按时完成任务 | J150: 未达指标值酌情扣分 | K150: 次 | L150: 定量
F151: 质量指标 | G151: 无 | H151: 无 | I151: 无 | J151: 未达指标值酌情扣分 | K151: 无 | L151: 定性
F152: 数量指标 | G152: 无 | H152: 无 | I152: 无 | J152: 无 | K152: 无 | L152: 定量
F153: 生态环境成本指标 | G153: 无 | H153: 无 | I153: 无 | J153: 无 | K153: 无 | L153: 定量
F154: 经济成本指标 | G154: 预算控制数 | H154: 500000 | I154: 社保基金安全监管 | J154: 未达指标值酌情扣分 | K154: 元 | L154: 定量
F155: 社会成本指标 | G155: 无 | H155: 无 | I155: 无负面影响 | J155: 无 | K155: 无 | L155: 定性
A156: 436002 | B156: 专技管理经费 | C156: 11.09 | D156: 专技管理经费 | E156: 满意度指标 | F156: 服务对象满意度指标 | G156: 满意度提高 | H156: ≥98 | I156: 93% | J156: 未达指标值酌情扣分 | K156: % | L156: ≥
E157: 效益指标 | F157: 生态效益指标 | G157: 无 | H157: 无 | I157: 无 | J157: 未达指标值酌情扣分 | K157: 无 | L157: 定性
F158: 社会效益指标 | G158: 专技管理 | H158: 2023年12月31日前 | I158: 社保基金安全监管 | J158: 未达指标值酌情扣分 | K158: 无 | L158: 定性
F159: 经济效益指标 | G159: 无 | H159: 无 | I159: 无 | J159: 未达指标值酌情扣分 | K159: 无 | L159: 定性
E160: 产出指标 | F160: 时效指标 | G160: 全年按时完成任务 | H160: 12月前 | I160: 全年按时完成任务 | J160: 未达指标值酌情扣分 | K160: 次 | L160: 定量
F161: 质量指标 | G161: 无 | H161: 无 | I161: 无 | J161: 未达指标值酌情扣分 | K161: 无 | L161: 定性
F162: 数量指标 | G162: 专技管理 | H162: 无 | I162: 无 | J162: 无 | K162: 无 | L162: 定量
F163: 生态环境成本指标 | G163: 无 | H163: 无 | I163: 无 | J163: 无 | K163: 无 | L163: 定量
F164: 经济成本指标 | G164: 预算控制数 | H164: 110900 | I164: 无 | J164: 未达指标值酌情扣分 | K164: 元 | L164: 定量
F165: 社会成本指标 | G165: 无 | H165: 无 | I165: 无负面影响 | J165: 无 | K165: 无 | L165: 定性

Sheet 23整体支出绩效目标表
A1: 整体支出绩效目标表
A2: 单位：岳阳县人力资源和社会保障局 | Q2: 金额单位：万元
A3: 单位编码 | B3: 单位名称 | C3: 年度预算申请 | J3: 整体绩效目标 | K3: 部门整体支出年度绩效目标
C4: 资金总额 | D4: 按收入性质分 | H4: 按支出性质分
D5: 一般公共预算 | E5: 政府性基金拨款 | F5: 财政专户管理资金 | G5: 其他资金 | H5: 基本支出 | I5: 项目支出 | K5: 一级指标 | L5: 二级指标 | M5: 三级指标 | N5: 指标值类型 | O5: 指标值 | P5: 度量单位 | Q5: 指标值说明 | R5: 备注
A6: 436002 | B6: 岳阳县人力资源和社会保障局机关 | C6: 1,750.16 | D6: =C6-I6 -> 1,372.07 | I6: 378.09 | J6: 目标1：拟定人力资源市场发展规划，规范人力资源市场建设 目标2：综合管理事业单位工资福利工作 目标3：综合管理政府人才工作 目标4：综合管理和指导劳动人事争议调解仲裁工作 目标5：负责促进就业工作 目标6：实施事业单位工作人员流动调配政策 目标7：组织实施劳动关系政策 目标8：退休老干部及职工的社会化管理 | K6: 产出指标 | L6: 重点工作任务完成 | M6: 完成预算目标 | N6: = | O6: 100 | P6: % | Q6: 完成各项工作任务
L7: 履职目标实现 | M7: 完成预算 | N7: = | O7: 100 | P7: % | Q7: 目标达成
K8: 效益指标 | L8: 履职效益 | M8: 完成目标任务 | N8: 定性 | O8: 1 | Q8: 完成任务
L9: 满意度 | M9: 满意度提高 | N9: ≥ | O9: 95 | P9: % | Q9: 提高满意度 | R9: 95
